bitfinex-derivatives/quotes_BTCF0:USTF0_20240817
["timestamp","ask_amount","ask_price","bid_price","bid_amount"]
[1723887540311,0.98528,59469.0,59468.0,0.00825213]
[1723887540716,0.5478304,59469.0,59468.0,0.00825213]
[1723887540922,0.5478304,59469.0,59468.0,0.04525849]
[1723887541117,0.5478304,59469.0,59468.0,0.00825213]
[1723887542209,0.4808,59469.0,59468.0,0.00825213]
[1723887542410,0.54785244,59469.0,59468.0,0.00825213]
[1723887543217,0.5478683,59469.0,59468.0,0.00825213]
[1723887545219,0.3608,59469.0,59468.0,0.00825213]
[1723887545524,0.42791062,59469.0,59468.0,0.00825213]
[1723887545934,0.3608,59469.0,59468.0,0.00825213]
[1723887547721,0.3608,59469.0,59468.0,0.04525627]
[1723887548629,0.3608,59469.0,59468.0,0.2936415]
[1723887548832,0.3608,59469.0,59468.0,0.29364097]
[1723887549525,0.3608,59469.0,59468.0,0.25663725]
[1723887550123,0.3608,59469.0,59468.0,0.17333866]
[1723887552225,0.3608,59469.0,59468.0,0.17333885]
[1723887552919,0.3608,59469.0,59468.0,0.21034271]
[1723887553122,0.3608,59469.0,59468.0,0.21034289]
[1723887554024,0.3608,59469.0,59468.0,0.17333903]
[1723887554224,0.3608,59469.0,59468.0,0.21034281]
[1723887554623,0.3608,59469.0,59468.0,0.17333903]
[1723887554832,0.3608,59473.0,59468.0,0.17333903]
[1723887555033,0.63117494,59473.0,59469.0,0.12048206]
[1723887555225,0.5808,59473.0,59470.0,0.03700391]
[1723887555425,0.5808,59473.0,59471.0,0.03700391]
[1723887555625,0.5808,59473.0,59472.0,0.03700391]
[1723887555626,0.63117494,59473.0,59472.0,0.03700391]
[1723887557934,0.63217494,59473.0,59472.0,0.03700391]
[1723887558241,0.5818,59473.0,59472.0,0.03700391]
[1723887559728,0.63217494,59473.0,59472.0,0.03700391]
[1723887560730,0.63217494,59473.0,59468.0,0.08373028]
[1723887560935,0.63217494,59473.0,59469.0,0.07400808]
[1723887560936,0.05037494,59471.0,59469.0,0.07400808]
[1723887561233,0.02,59471.0,59468.0,0.00025213]
[1723887561436,0.07037494,59471.0,59469.0,0.07401002]
[1723887561742,0.07037494,59471.0,59470.0,0.07401002]
[1723887562737,0.02,59471.0,59470.0,0.07401002]
[1723887562930,0.92444,59471.0,59470.0,0.14079506]
[1723887563133,0.063044,59470.0,59468.0,0.00825213]
[1723887563334,0.94472896,59470.0,59468.0,0.00825213]
[1723887563536,0.57168496,59469.0,59468.0,0.00825213]
[1723887563734,0.92168496,59469.0,59468.0,0.00325213]
[1723887564038,1.32168496,59469.0,59468.0,0.00325213]
[1723887564235,1.32168496,59469.0,59468.0,0.00025213]
[1723887564542,1.32168496,59469.0,59468.0,0.00525213]
[1723887565339,0.92168496,59469.0,59468.0,0.00825213]
[1723887565737,0.92168496,59469.0,59461.0,0.08347815]
[1723887565936,0.3608,59462.0,59460.0,0.08365357]
[1723887566643,0.3708,59462.0,59460.0,0.08365357]
[1723887567138,0.3708,59462.0,59460.0,0.09765357]
[1723887567533,0.3608,59462.0,59460.0,0.09765357]
[1723887567839,0.3608,59462.0,59461.0,0.01]
[1723887568849,0.0922,59465.0,59461.0,0.01]
[1723887569043,0.3608,59462.0,59460.0,0.09765357]
[1723887569246,0.3608,59462.0,59461.0,0.08347815]
[1723887569247,0.3618,59462.0,59461.0,0.08347815]
[1723887569446,0.001,59462.0,59461.0,0.08347815]
[1723887569743,0.001,59462.0,59461.0,0.2115764]
[1723887569947,0.094,59462.0,59460.0,0.10865357]
[1723887570540,0.094,59462.0,59460.0,0.18122942]
[1723887570541,0.05139815,59462.0,59460.0,0.18122942]
[1723887570737,0.05139815,59462.0,59461.0,0.11395758]
[1723887570738,0.002,59462.0,59461.0,0.11395758]
[1723887570937,0.001,59462.0,59461.0,0.25201149]
[1723887571143,0.001,59462.0,59461.0,0.12392141]
[1723887571344,0.001,59462.0,59461.0,0.11092141]
[1723887571748,0.002,59462.0,59461.0,0.10092141]
[1723887571949,0.002,59462.0,59461.0,0.11392141]
[1723887572150,0.002,59462.0,59461.0,0.03047943]
[1723887572342,0.002,59462.0,59461.0,0.60281574]
[1723887572649,0.002,59462.0,59461.0,0.61281574]
[1723887573038,0.002,59462.0,59461.0,0.61281163]
[1723887573645,0.002,59462.0,59461.0,0.52936972]
[1723887573951,0.002,59462.0,59461.0,0.16856972]
[1723887574142,0.002,59462.0,59461.0,0.25200575]
[1723887574449,0.002,59462.0,59461.0,0.61280575]
[1723887574645,0.002,59462.0,59461.0,0.25200062]
[1723887574845,0.002,59462.0,59461.0,0.25200055]
[1723887575046,0.002,59462.0,59461.0,0.68681284]
[1723887575246,0.002,59462.0,59461.0,0.55872141]
[1723887575444,0.002,59462.0,59461.0,0.60338156]
[1723887575651,0.002,59462.0,59461.0,0.32601721]
[1723887575839,0.002,59462.0,59461.0,0.19792584]
[1723887576036,0.002,59462.0,59461.0,0.24258066]
[1723887576450,0.002,59462.0,59461.0,0.30649877]
[1723887577149,0.002,59462.0,59461.0,0.30880367]
[1723887578046,0.002,59462.0,59461.0,0.30880472]
[1723887579146,0.36105212,59467.0,59461.0,0.66960472]
[1723887579346,0.00025212,59467.0,59466.0,0.08344187]
[1723887579647,0.00025212,59467.0,59466.0,0.30301554]
[1723887579951,0.00025212,59467.0,59466.0,0.17492941]
[1723887580145,0.00025212,59467.0,59466.0,0.36836922]
[1723887580747,0.00125212,59467.0,59466.0,0.37536922]
[1723887580938,0.00225212,59467.0,59466.0,0.37536922]
[1723887581246,0.37305212,59467.0,59464.0,0.08344187]
[1723887581446,0.37305212,59467.0,59461.0,0.01]
[1723887581447,0.063052,59462.0,59461.0,0.01]
[1723887581755,0.59724033,59462.0,59461.0,0.0470105]
[1723887581944,0.686852,59462.0,59461.0,0.0370105]
[1723887584147,0.687852,59462.0,59461.0,0.0490105]
[1723887584548,0.688852,59462.0,59461.0,0.0590105]
[1723887584957,0.375552,59462.0,59461.0,0.0590105]
[1723887586452,0.425452,59462.0,59461.0,0.0590105]
[1723887588354,0.05239034,59462.0,59461.0,0.0590105]
[1723887588555,0.002,59462.0,59461.0,0.0590105]
[1723887588954,0.002,59462.0,59461.0,0.14243427]
[1723887589155,0.002,59462.0,59461.0,0.18710742]
[1723887589462,0.002,59462.0,59461.0,0.1871034]
[1723887590656,0.002,59462.0,59461.0,0.27054086]
[1723887591050,0.002,59462.0,59461.0,0.1871034]
[1723887591251,0.002,59462.0,59461.0,0.27054744]
[1723887591446,0.002,59462.0,59461.0,0.1871034]
[1723887591865,0.002,59462.0,59461.0,0.27055101]
[1723887593062,0.095,59462.0,59461.0,0.27055101]
[1723887593361,0.095,59462.0,59461.0,0.30755846]
[1723887593560,0.095,59462.0,59461.0,0.31949932]
[1723887596060,0.095,59462.0,59461.0,0.31949866]
[1723887597564,0.095,59462.0,59461.0,0.19140118]
[1723887597867,0.095,59462.0,59461.0,0.28249173]
[1723887598072,0.095,59462.0,59461.0,0.24548385]
[1723887598258,0.095,59462.0,59461.0,0.10795576]
[1723887598456,0.115,59462.0,59461.0,0.0960149]
[1723887598658,0.115,59462.0,59461.0,0.17946086]
[1723887598871,0.115,59462.0,59461.0,0.0960149]
[1723887599058,0.115,59462.0,59461.0,0.09601642]
[1723887599865,0.1646,59462.0,59461.0,0.09601642]
[1723887600367,0.1646,59462.0,59461.0,0.05900897]
[1723887600368,0.3246,59462.0,59461.0,0.05900897]
[1723887600760,0.37499034,59462.0,59461.0,0.05900897]
[1723887601369,0.37497829,59462.0,59461.0,0.05900897]
[1723887601666,0.82912,59462.0,59461.0,0.05900897]
[1723887602664,0.3246,59462.0,59461.0,0.05900897]
[1723887604463,0.3246,59462.0,59461.0,0.09602015]
[1723887608374,0.3246,59462.0,59461.0,0.022]
[1723887608578,0.37497225,59462.0,59461.0,0.05901118]
[1723887608978,0.37497225,59462.0,59461.0,0.05901157]
[1723887611081,0.3246,59462.0,59461.0,0.05901157]
[1723887613167,0.3246,59462.0,59461.0,0.022]
[1723887616481,0.387653,59462.0,59461.0,0.022]
[1723887619177,0.47161172,59462.0,59455.0,1e-08]
[1723887619377,0.50417291,59456.0,59455.0,1e-08]
[1723887619676,0.9938,59456.0,59455.0,1e-08]
[1723887620282,1.05702371,59456.0,59455.0,1e-08]
[1723887620479,1.05702371,59456.0,59455.0,0.01400001]
[1723887620785,1.05802371,59456.0,59455.0,0.02800001]
[1723887621081,1.05802371,59456.0,59455.0,0.01400001]
[1723887621281,1.05902371,59456.0,59455.0,0.02800001]
[1723887621786,0.96602371,59456.0,59455.0,0.02800001]
[1723887621971,1.016383,59456.0,59455.0,0.02800001]
[1723887622175,0.969383,59456.0,59455.0,0.02800001]
[1723887622477,0.91902371,59456.0,59455.0,0.02800001]
[1723887623075,0.969383,59456.0,59455.0,0.02800001]
[1723887623483,0.91902371,59456.0,59455.0,0.02800001]
[1723887624078,0.969383,59456.0,59455.0,0.02800001]
[1723887624383,0.91902371,59456.0,59455.0,0.02800001]
[1723887625085,0.969383,59456.0,59455.0,0.02800001]
[1723887625287,1.12620102,59456.0,59455.0,2e-07]
[1723887625474,1.12620102,59456.0,59440.0,0.05030666]
[1723887625475,0.063074,59442.0,59440.0,0.05030666]
[1723887625784,0.063074,59442.0,59434.0,0.0948]
[1723887625785,0.063075,59441.0,59436.0,0.08344596]
[1723887625986,0.093,59440.0,59437.0,0.0370234]
[1723887626186,0.00013846,59439.0,59438.0,0.0370234]
[1723887627388,0.00013846,59439.0,59435.0,0.063081]
[1723887627389,0.00013846,59439.0,59435.0,0.14652696]
[1723887627584,0.00013846,59439.0,59436.0,0.03702331]
[1723887627779,0.00013846,59439.0,59437.0,0.03702331]
[1723887628088,0.00013846,59439.0,59436.0,0.08344596]
[1723887628288,0.00013846,59439.0,59437.0,0.03702322]
[1723887628474,0.093,59438.0,59436.0,0.08344596]
[1723887628683,0.093,59438.0,59435.0,0.14652696]
[1723887628886,0.093,59438.0,59436.0,0.03702282]
[1723887629183,0.093,59438.0,59437.0,0.03702282]
[1723887629487,0.093,59438.0,59435.0,0.14652696]
[1723887629689,0.093,59438.0,59436.0,0.03702317]
[1723887629890,0.00113846,59439.0,59437.0,0.10010141]
[1723887630085,0.093,59438.0,59437.0,0.063079]
[1723887630281,0.093,59438.0,59437.0,0.10010056]
[1723887630486,0.03510252,59438.0,59437.0,0.18354652]
[1723887630876,0.03510252,59438.0,59437.0,0.31168975]
[1723887631192,0.03610252,59438.0,59437.0,0.18354652]
[1723887631385,0.03610252,59438.0,59437.0,0.10010056]
[1723887631585,0.03610252,59438.0,59437.0,0.063079]
[1723887631982,0.03510252,59438.0,59437.0,0.063079]
[1723887632286,0.03510252,59438.0,59435.0,0.08344596]
[1723887632488,0.03510252,59438.0,59434.0,0.18970338]
[1723887632687,0.093,59435.0,59434.0,0.10625742]
[1723887633889,0.001,59438.0,59434.0,0.10625742]
[1723887633890,0.065079,59438.0,59434.0,0.16933942]
[1723887634090,0.093,59435.0,59434.0,0.16933942]
[1723887634885,0.065079,59438.0,59434.0,0.16933942]
[1723887635092,0.093,59435.0,59434.0,0.16933942]
[1723887635388,0.094,59435.0,59434.0,0.16933942]
[1723887636087,0.095,59435.0,59434.0,0.16933942]
[1723887637381,0.095,59435.0,59434.0,0.20636315]
[1723887642397,0.095,59435.0,59434.0,0.20636375]
[1723887642893,0.095,59435.0,59434.0,0.16933942]
[1723887643097,0.095,59435.0,59434.0,0.01145742]
[1723887643296,0.105,59435.0,59433.0,0.00025235]
[1723887644192,0.105,59435.0,59433.0,0.01183203]
[1723887644790,0.095,59435.0,59433.0,0.01183203]
[1723887644987,0.094,59435.0,59433.0,0.01183203]
[1723887645390,0.095,59435.0,59433.0,0.01183203]
[1723887647499,0.095,59435.0,59434.0,0.03702467]
[1723887648496,0.094,59435.0,59434.0,0.03702467]
[1723887648704,0.095,59435.0,59434.0,0.03702467]
[1723887649386,0.095,59435.0,59433.0,0.09527799]
[1723887649587,0.095,59435.0,59434.0,0.03702467]
[1723887652194,0.094,59435.0,59434.0,0.03702467]
[1723887652397,0.095,59435.0,59434.0,0.03702467]
[1723887653091,0.094,59435.0,59434.0,0.03702467]
[1723887653291,0.095,59435.0,59434.0,0.24862452]
[1723887653494,0.002,59435.0,59434.0,0.16517856]
[1723887653806,0.095,59435.0,59434.0,0.20220197]
[1723887654992,0.105,59435.0,59434.0,0.20220197]
[1723887655191,0.105,59435.0,59434.0,0.20220274]
[1723887655597,0.105,59435.0,59434.0,0.16517916]
[1723887656105,0.105,59435.0,59434.0,0.22831977]
[1723887656601,0.105,59435.0,59434.0,0.26534435]
[1723887658503,0.105,59435.0,59434.0,0.30236791]
[1723887658708,0.105,59435.0,59434.0,0.26534384]
[1723887659415,0.105,59435.0,59434.0,0.30236796]
[1723887659908,0.105,59435.0,59434.0,0.17421347]
[1723887660114,0.105,59435.0,59434.0,0.30236767]
[1723887660412,0.105,59435.0,59434.0,0.30251561]
[1723887660607,0.105,59435.0,59434.0,0.20220239]
[1723887660802,0.105,59435.0,59434.0,0.30251477]
[1723887661011,0.105,59435.0,59434.0,0.22846658]
[1723887661207,0.105,59435.0,59434.0,0.30251474]
[1723887661401,0.105,59435.0,59434.0,0.20220236]
[1723887661916,0.105,59435.0,59434.0,0.30252971]
[1723887663306,0.105,59435.0,59434.0,0.30252932]
[1723887664616,0.105,59435.0,59434.0,0.22848116]
[1723887664908,0.105,59435.0,59434.0,0.30252922]
[1723887665109,0.105,59435.0,59434.0,0.20220187]
[1723887665501,0.105,59435.0,59434.0,0.3479221]
[1723887666099,0.095,59435.0,59434.0,0.3479221]
[1723887666300,0.105,59435.0,59434.0,0.3479221]
[1723887667212,0.105,59435.0,59434.0,0.30254702]
[1723887667910,0.105,59435.0,59434.0,0.302547]
[1723887668103,0.105,59435.0,59434.0,0.20220185]
[1723887668298,0.105,59435.0,59434.0,0.302547]
[1723887668499,0.105,59435.0,59434.0,0.20220185]
[1723887668801,0.105,59435.0,59434.0,0.12815379]
[1723887669005,0.105,59435.0,59434.0,0.20220179]
[1723887669405,0.105,59435.0,59434.0,0.20220192]
[1723887670502,0.105,59435.0,59434.0,0.26615269]
[1723887670702,0.105,59435.0,59434.0,0.26615282]
[1723887672704,0.15536263,59435.0,59434.0,0.26615282]
[1723887672909,0.6258,59435.0,59434.0,0.34981223]
[1723887673108,0.6258,59435.0,59434.0,0.07405474]
[1723887674309,0.58325577,59435.0,59434.0,0.07405474]
[1723887674509,0.6258,59435.0,59434.0,0.03702737]
[1723887674911,0.6258,59435.0,59434.0,0.07405481]
[1723887674912,0.58325577,59435.0,59434.0,0.07405481]
[1723887675121,0.3628,59435.0,59434.0,0.15771422]
[1723887675310,0.4558,59435.0,59434.0,0.15771422]
[1723887675508,0.4558,59435.0,59434.0,0.28587736]
[1723887677017,0.4558,59435.0,59434.0,0.28587618]
[1723887677408,0.095,59435.0,59434.0,0.28587618]
[1723887679219,0.095,59435.0,59434.0,0.15771422]
[1723887679913,0.095,59435.0,59434.0,0.15763422]
[1723887680914,0.095,59435.0,59434.0,0.07397481]
[1723887681414,0.095,59435.0,59434.0,0.03702628]
[1723887684412,0.095,59435.0,59433.0,0.08391176]
[1723887684718,0.095,59435.0,59434.0,0.03702628]
[1723887685510,0.094,59435.0,59433.0,0.08391176]
[1723887685715,0.095,59435.0,59434.0,0.03702628]
[1723887687518,0.095,59435.0,59433.0,0.08391176]
[1723887687818,0.095,59435.0,59434.0,0.03702629]
[1723887688126,0.095,59435.0,59434.0,0.03702628]
[1723887688718,0.094,59435.0,59434.0,0.03702628]
[1723887688920,0.095,59435.0,59434.0,0.03702628]
[1723887690423,0.093,59435.0,59434.0,0.12068569]
[1723887690721,0.093,59435.0,59434.0,0.24884819]
[1723887690722,0.095,59435.0,59434.0,0.24884819]
[1723887691722,0.095,59435.0,59434.0,0.12068569]
[1723887691723,0.105,59435.0,59434.0,0.12068569]
[1723887691921,0.105,59435.0,59434.0,0.1577121]
[1723887693328,0.105,59435.0,59434.0,0.285874]
[1723887693921,0.105,59435.0,59434.0,0.12068582]
[1723887694120,0.105,59435.0,59434.0,0.15771223]
[1723887694318,0.105,59435.0,59434.0,0.07405282]
[1723887694519,0.105,59435.0,59434.0,0.15771223]
[1723887694714,0.105,59435.0,59434.0,0.15763225]
[1723887696325,0.105,59435.0,59434.0,0.2857942]
[1723887696626,0.11662767,59435.0,59434.0,0.2857942]
[1723887697225,0.11662767,59435.0,59434.0,0.28579421]
[1723887698320,0.11662767,59435.0,59434.0,0.21174137]
[1723887698524,0.11662767,59435.0,59434.0,0.28579422]
[1723887700429,0.11662767,59435.0,59434.0,0.20221481]
[1723887702828,0.012,59435.0,59434.0,0.20221481]
[1723887703132,0.095,59435.0,59434.0,0.20221481]
[1723887703329,0.14545577,59435.0,59434.0,0.20221481]
[1723887704228,0.14545577,59435.0,59434.0,0.20221476]
[1723887705834,0.15545577,59435.0,59434.0,0.20221476]
[1723887706826,0.15545577,59435.0,59434.0,0.16518833]
[1723887707021,0.15545577,59435.0,59434.0,0.20221475]
[1723887709729,0.15545577,59435.0,59434.0,0.20217475]
[1723887710830,0.105,59435.0,59434.0,0.20217475]
[1723887711032,0.105,59435.0,59434.0,0.12812191]
[1723887711237,0.105,59435.0,59434.0,0.20217475]
[1723887711724,0.012,59435.0,59434.0,0.20217475]
[1723887711924,0.105,59435.0,59434.0,0.20217475]
[1723887712228,0.47393018,59438.0,59437.0,0.063079]
[1723887712229,0.05136086,59438.0,59437.0,0.063079]
[1723887712435,0.00013846,59439.0,59437.0,0.28213032]
[1723887712741,0.00013846,59439.0,59438.0,0.26615132]
[1723887713249,0.00013846,59439.0,59438.0,4.03615132]
[1723887713547,0.00013846,59439.0,59438.0,0.26615132]
[1723887713844,0.00113846,59439.0,59438.0,0.26615132]
[1723887714242,0.00113846,59439.0,59438.0,0.22145977]
[1723887714744,0.00113846,59439.0,59438.0,0.12115284]
[1723887715152,0.00113846,59439.0,59438.0,0.1211491]
[1723887716539,0.00113846,59439.0,59438.0,0.13288056]
[1723887716839,0.00113846,59439.0,59438.0,0.08578056]
[1723887719831,0.00113846,59439.0,59438.0,0.08578002]
[1723887723748,0.00113846,59439.0,59438.0,0.44658002]
[1723887724652,0.00113846,59439.0,59438.0,0.57472453]
[1723887725949,0.00113846,59439.0,59438.0,0.08578002]
[1723887725950,0.02113846,59439.0,59438.0,0.08578002]
[1723887726148,0.02113846,59439.0,59437.0,0.14659688]
[1723887726342,0.02113846,59439.0,59438.0,0.0740451]
[1723887726745,0.02113846,59439.0,59438.0,0.07404512]
[1723887727240,0.02013846,59439.0,59438.0,0.07404512]
[1723887727441,0.00113846,59439.0,59438.0,0.07404512]
[1723887727846,0.00013846,59439.0,59438.0,0.07404512]
[1723887728155,0.00113846,59439.0,59438.0,0.07404512]
[1723887728545,0.00213846,59439.0,59438.0,0.07404512]
[1723887729554,0.00113846,59439.0,59438.0,0.07404512]
[1723887730342,0.00113846,59439.0,59438.0,0.03702256]
[1723887730548,0.00113846,59439.0,59438.0,0.074045]
[1723887730959,0.00113846,59439.0,59438.0,0.07404488]
[1723887731948,0.01113846,59439.0,59438.0,0.07404488]
[1723887732350,0.01113846,59439.0,59438.0,0.15756276]
[1723887733364,0.01113846,59439.0,59438.0,0.07404488]
[1723887733567,0.01113846,59439.0,59438.0,0.20219383]
[1723887733858,0.01113846,59439.0,59438.0,0.26527183]
[1723887734658,0.01113846,59439.0,59438.0,0.19122695]
[1723887734961,0.01113846,59439.0,59438.0,0.26527259]
[1723887735556,0.01113846,59439.0,59438.0,0.22068633]
[1723887735751,0.01113846,59439.0,59438.0,0.34883652]
[1723887735950,0.01113846,59439.0,59438.0,0.34883795]
[1723887737260,0.01113846,59439.0,59438.0,0.26527526]
[1723887738054,0.01113846,59439.0,59438.0,0.26527545]
[1723887742862,0.01113846,59439.0,59438.0,0.22825263]
[1723887743067,0.00113846,59439.0,59438.0,0.26527564]
[1723887743469,0.00113846,59439.0,59438.0,0.36558257]
[1723887743664,0.00113846,59439.0,59438.0,0.28277036]
[1723887743859,0.00113846,59439.0,59438.0,0.28276812]
[1723887744471,0.00113846,59439.0,59438.0,0.19122738]
[1723887744771,0.00113846,59439.0,59438.0,0.28276763]
[1723887747772,0.00113846,59439.0,59438.0,0.28276762]
[1723887751164,0.00213846,59439.0,59438.0,0.28776762]
[1723887751561,0.00213846,59439.0,59438.0,0.28776821]
[1723887751973,0.00113846,59439.0,59438.0,0.28776821]
[1723887752864,0.00013846,59439.0,59438.0,0.28276821]
[1723887753071,0.43140711,59439.0,59438.0,0.20219672]
[1723887753276,0.42623846,59439.0,59438.0,0.07404624]
[1723887753776,0.57623846,59439.0,59438.0,0.07404624]
[1723887753977,0.64338864,59439.0,59438.0,0.07404624]
[1723887754273,1.08095846,59439.0,59438.0,0.03702312]
[1723887754464,1.48095846,59439.0,59436.0,0.06692342]
[1723887754669,0.63931546,59439.0,59437.0,0.03702764]
[1723887754870,1.14403546,59439.0,59438.0,0.03702764]
[1723887755078,1.15544631,59439.0,59438.0,0.03702764]
[1723887755279,0.063079,59437.0,59435.0,0.06692342]
[1723887755469,0.333079,59437.0,59435.0,0.06692342]
[1723887755670,0.333079,59437.0,59436.0,0.03702791]
[1723887755984,0.426079,59437.0,59436.0,0.03702791]
[1723887756279,0.930839,59437.0,59436.0,0.03702791]
[1723887756579,0.427079,59437.0,59436.0,0.03702791]
[1723887757380,0.787879,59437.0,59436.0,0.03702791]
[1723887757881,0.788879,59437.0,59436.0,0.03702791]
[1723887758280,0.788879,59437.0,59436.0,0.08717853]
[1723887758578,0.8392874,59437.0,59436.0,0.05015062]
[1723887759083,0.063081,59435.0,59434.0,0.05015404]
[1723887759270,0.356081,59435.0,59434.0,0.05015404]
[1723887759666,0.405481,59435.0,59433.0,0.00025235]
[1723887759878,0.0494,59434.0,59433.0,0.00025235]
[1723887760073,0.0794,59434.0,59433.0,0.07430893]
[1723887760275,0.0494,59434.0,59433.0,0.10420406]
[1723887760472,0.0494,59434.0,59433.0,0.14123214]
[1723887761285,0.0494,59434.0,59433.0,0.06717577]
[1723887761286,0.0504,59434.0,59433.0,0.06717577]
[1723887761582,0.0504,59434.0,59433.0,0.14123155]
[1723887762084,0.0514,59434.0,59433.0,0.14123155]
[1723887763283,0.0714,59434.0,59433.0,0.14123155]
[1723887764382,0.0714,59434.0,59433.0,0.03728032]
[1723887764982,0.0714,59434.0,59433.0,0.10420374]
[1723887765283,0.0714,59434.0,59433.0,0.03728032]
[1723887766585,0.2314,59434.0,59433.0,0.03728032]
[1723887767687,0.2314,59434.0,59433.0,0.08740391]
[1723887768385,0.2314,59434.0,59433.0,0.00025235]
[1723887769885,0.2314,59434.0,59433.0,9.235e-05]
[1723887773079,1.13616,59434.0,59428.0,0.05026164]
[1723887773273,0.4538,59429.0,59428.0,0.00013805]
[1723887773476,0.7438,59429.0,59428.0,0.00013805]
[1723887774388,0.806887,59429.0,59428.0,0.00013805]
[1723887775185,0.807887,59429.0,59428.0,0.00013805]
[1723887776875,0.808887,59429.0,59428.0,0.00013805]
[1723887777781,0.82031758,59429.0,59428.0,0.00013805]
[1723887781589,0.82031758,59429.0,59428.0,0.03717147]
[1723887783396,0.75723058,59429.0,59424.0,0.06692342]
[1723887783593,0.714629,59429.0,59427.0,0.05015789]
[1723887784190,0.05039842,59428.0,59427.0,0.05015789]
[1723887784501,0.063089,59427.0,59426.0,0.05015789]
[1723887784685,0.41628715,59427.0,59426.0,0.05015789]
[1723887785702,0.77708715,59427.0,59426.0,0.05015789]
[1723887785996,0.77808715,59427.0,59426.0,0.05015789]
[1723887787195,0.41728715,59427.0,59426.0,0.05015789]
[1723887787498,0.77908715,59427.0,59426.0,0.05015789]
[1723887790794,0.063091,59425.0,59424.0,0.06692342]
[1723887790993,0.323091,59425.0,59424.0,0.06692342]
[1723887791990,0.324091,59425.0,59424.0,0.06692342]
[1723887792191,0.324091,59425.0,59423.0,0.00025235]
[1723887792393,0.093,59424.0,59423.0,0.00025235]
[1723887792586,0.186093,59424.0,59423.0,0.00025235]
[1723887793604,0.187093,59424.0,59423.0,0.00025235]
[1723887794804,0.188093,59424.0,59423.0,0.00025235]
[1723887798302,0.188093,59424.0,59423.0,0.08391983]
[1723887799193,0.188093,59424.0,59423.0,0.21210724]
[1723887801291,0.23849142,59424.0,59423.0,0.21210724]
[1723887802304,0.188093,59424.0,59423.0,0.21210724]
[1723887802690,0.338093,59424.0,59423.0,0.05026656]
[1723887803205,0.42220027,59424.0,59423.0,1e-08]
[1723887803591,0.36537022,59424.0,59423.0,1e-08]
[1723887804199,0.4221762,59424.0,59423.0,1e-08]
[1723887805100,1.3270162,59424.0,59423.0,1e-08]
[1723887806102,1.3260162,59424.0,59423.0,1e-08]
[1723887806301,1.242933,59424.0,59423.0,1e-08]
[1723887806805,1.3270162,59424.0,59423.0,1e-08]
[1723887807300,1.242933,59424.0,59423.0,1e-08]
[1723887807904,0.0631,59417.0,59416.0,0.05020672]
[1723887808105,1.4149273,59417.0,59415.0,0.0252671]
[1723887808305,1.4149273,59417.0,59412.0,0.06701448]
[1723887808306,0.063102,59415.0,59410.0,0.06701448]
[1723887808608,0.3608,59411.0,59410.0,0.06701448]
[1723887808796,0.54096817,59411.0,59410.0,0.06701448]
[1723887809004,0.54096817,59411.0,59409.0,0.06701448]
[1723887809304,0.093,59410.0,59408.0,0.07802534]
[1723887809503,0.093,59410.0,59407.0,0.16241448]
[1723887810605,0.104,59410.0,59407.0,0.16241448]
[1723887810805,0.094,59410.0,59407.0,0.17374575]
[1723887811197,0.094,59410.0,59407.0,0.10673127]
[1723887811806,0.094,59410.0,59407.0,0.17374575]
[1723887811997,0.095,59410.0,59407.0,0.17374575]
[1723887812200,0.095,59410.0,59407.0,0.10673127]
[1723887812799,0.265,59410.0,59407.0,0.10673127]
[1723887813002,0.328108,59410.0,59407.0,0.10673127]
[1723887813200,0.063109,59409.0,59407.0,0.01133127]
[1723887813506,0.06311,59408.0,59405.0,0.00025235]
[1723887813706,0.093,59406.0,59405.0,0.00025235]
[1723887814005,0.113,59406.0,59405.0,0.00025235]
[1723887815306,0.273,59406.0,59405.0,0.00025235]
[1723887815901,0.274,59406.0,59405.0,0.00025235]
[1723887816505,0.275,59406.0,59405.0,0.00025235]
[1723887816802,0.115,59406.0,59405.0,0.00025235]
[1723887818701,0.022,59406.0,59405.0,0.00025235]
[1723887818907,0.115,59406.0,59405.0,0.00025235]
[1723887822310,0.4758,59406.0,59405.0,0.00025235]
[1723887823107,0.6258,59406.0,59405.0,0.00025235]
[1723887826412,0.6735,59406.0,59405.0,0.00025235]
[1723887828628,0.7232,59406.0,59405.0,0.00025235]
[1723887829022,0.6735,59406.0,59405.0,0.00025235]
[1723887831220,0.72390737,59406.0,59405.0,0.00025235]
[1723887831522,0.6735,59406.0,59405.0,0.00025235]
[1723887835234,0.736612,59406.0,59405.0,0.00025235]
[1723887836822,0.8038393,59406.0,59405.0,0.00025235]
[1723887837225,0.736612,59406.0,59405.0,0.00025235]
[1723887837428,0.375812,59406.0,59405.0,0.00025235]
[1723887837629,0.736612,59406.0,59405.0,0.00025235]
[1723887838329,0.375812,59406.0,59405.0,0.00025235]
[1723887838536,0.736612,59406.0,59405.0,0.00025235]
[1723887839131,0.799724,59406.0,59405.0,0.00025235]
[1723887839331,0.799724,59406.0,59397.0,0.06715983]
[1723887839332,1.32569359,59406.0,59397.0,0.06715983]
[1723887839531,0.4538,59398.0,59397.0,0.00014535]
[1723887839732,0.71393122,59398.0,59397.0,0.00014535]
[1723887840942,0.79801281,59398.0,59392.0,0.00025235]
[1723887841137,0.4538,59393.0,59392.0,0.00025235]
[1723887841441,0.7838,59393.0,59392.0,0.00025235]
[1723887841643,0.06313,59389.0,59388.0,0.06701448]
[1723887841836,0.063132,59388.0,59386.0,0.06701448]
[1723887842137,0.4538,59387.0,59386.0,0.06701448]
[1723887842337,0.5838,59387.0,59385.0,0.06701448]
[1723887842644,0.093,59386.0,59385.0,0.06701448]
[1723887842833,0.424852,59387.0,59385.0,0.06701448]
[1723887843041,0.093,59386.0,59382.0,0.08366748]
[1723887843239,0.093,59383.0,59382.0,0.08366748]
[1723887843543,0.09312317,59383.0,59381.0,0.08366748]
[1723887844135,0.09312317,59383.0,59382.0,0.08366748]
[1723887844343,0.09312317,59383.0,59382.0,0.2119381]
[1723887844637,0.09512317,59383.0,59382.0,0.2119381]
[1723887845435,0.09412317,59383.0,59382.0,0.08366748]
[1723887845644,0.09512317,59383.0,59382.0,0.08366748]
[1723887845842,0.09512317,59383.0,59381.0,0.08366748]
[1723887847244,0.09412317,59383.0,59381.0,0.08366748]
[1723887847445,0.09512317,59383.0,59380.0,0.30144747]
[1723887847642,0.09512317,59383.0,59381.0,0.08366748]